[Event "Rapid della Domenica"]
[Site "Chess.com"]
[Date "2020.05.03"]
[Round "5"]
[White "donaldnecesito"]
[Black "giulioscaglione"]
[Result "1-0"]
[WhiteElo "1628"]
[BlackElo "1387"]
[TimeControl "720+3"]
[EndTime "7:55:30 PDT"]
[Termination "donaldnecesito ha vinto per scaccomatto"]

1. e4 {[%clk 0:12:02.9]} 1... e6 {[%clk 0:12:01.4]} 2. d4 {[%clk 0:12:03.8]}
2... b6 {[%clk 0:12:03.1]} 3. Bd3 {[%clk 0:11:52.4]} 3... Bb7 {[%clk 0:12:04.5]}
4. Nd2 {[%clk 0:11:50.2]} 4... Ne7 {[%clk 0:12:05.8]} 5. Ne2 {[%clk 0:11:48.8]}
5... Ng6 {[%clk 0:12:07.3]} 6. Nf3 {[%clk 0:11:50.2]} 6... Be7 {[%clk
0:12:06.2]} 7. O-O {[%clk 0:11:47.4]} 7... d6 {[%clk 0:12:07.9]} 8. c4 {[%clk
0:11:42.1]} 8... Nd7 {[%clk 0:12:09.5]} 9. b3 {[%clk 0:11:41.4]} 9... O-O {[%clk
0:12:10.5]} 10. Bb2 {[%clk 0:11:42.9]} 10... Bf6 {[%clk 0:12:09.6]} 11. Rc1
{[%clk 0:11:41.9]} 11... e5 {[%clk 0:12:10.6]} 12. Bb1 {[%clk 0:11:26.8]} 12...
Re8 {[%clk 0:12:06.4]} 13. Re1 {[%clk 0:11:26.1]} 13... Bg5 {[%clk 0:11:22.7]}
14. Nxg5 {[%clk 0:11:18.7]} 14... Qxg5 {[%clk 0:11:23.9]} 15. Ng3 {[%clk
0:11:05.2]} 15... Nf6 {[%clk 0:10:15.1]} 16. Bc3 {[%clk 0:10:17.6]} 16... Qg4
{[%clk 0:08:59.3]} 17. f3 {[%clk 0:10:05.1]} 17... Qd7 {[%clk 0:08:51.4]} 18.
dxe5 {[%clk 0:09:47.8]} 18... Nxe5 {[%clk 0:08:46.2]} 19. f4 {[%clk 0:09:33]}
19... Ng6 {[%clk 0:08:31.4]} 20. e5 {[%clk 0:08:55.5]} 20... Nh5 {[%clk
0:08:07.5]} 21. Qxh5 {[%clk 0:08:33.7]} 21... dxe5 {[%clk 0:07:45.8]} 22. Bxe5
{[%clk 0:08:09.3]} 22... Qd2 {[%clk 0:07:33.1]} 23. Qe2 {[%clk 0:07:29.6]} 23...
Qxe2 {[%clk 0:07:11]} 24. Rxe2 {[%clk 0:07:16.4]} 24... f6 {[%clk 0:07:06.6]}
25. Bxc7 {[%clk 0:07:08.1]} 25... Nxf4 {[%clk 0:07:05.3]} 26. Bxf4 {[%clk
0:07:07.8]} 26... Rxe2 {[%clk 0:07:06]} 27. Nxe2 {[%clk 0:07:08.9]} 27... Re8
{[%clk 0:07:02.2]} 28. Bd3 {[%clk 0:06:59.9]} 28... g5 {[%clk 0:06:59.9]} 29.
Bg3 {[%clk 0:06:44.6]} 29... h5 {[%clk 0:06:50.6]} 30. Nc3 {[%clk 0:06:30.9]}
30... h4 {[%clk 0:06:47]} 31. Bf2 {[%clk 0:06:31.9]} 31... Rd8 {[%clk 0:06:39]}
32. Nd5 {[%clk 0:06:33.4]} 32... Bxd5 {[%clk 0:06:30.8]} 33. cxd5 {[%clk
0:06:35.4]} 33... Kg7 {[%clk 0:06:25.6]} 34. Rc7+ {[%clk 0:06:29.5]} 34... Kh6
{[%clk 0:06:26.1]} 35. Rh7# {[%clk 0:06:30.4]} 1-0

[Event "Rapid della Domenica"]
[Site "Chess.com"]
[Date "2020.05.03"]
[Round "5"]
[White "FrancescoZasa"]
[Black "fausto2p"]
[Result "1/2-1/2"]
[WhiteElo "636"]
[BlackElo "953"]
[TimeControl "720+3"]
[EndTime "7:57:22 PDT"]
[Termination "Partita patta per stallo"]

1. d4 {[%clk 0:12:02.9]} 1... d5 {[%clk 0:11:59.5]} 2. Nf3 {[%clk 0:12:02.9]}
2... Nf6 {[%clk 0:11:56.1]} 3. Nc3 {[%clk 0:12:04.2]} 3... e6 {[%clk 0:11:50.6]}
4. e3 {[%clk 0:11:59.1]} 4... c5 {[%clk 0:11:51.5]} 5. b3 {[%clk 0:11:47.5]}
5... Nc6 {[%clk 0:11:50.8]} 6. dxc5 {[%clk 0:11:37]} 6... Bxc5 {[%clk
0:11:48.4]} 7. Bd3 {[%clk 0:11:23.3]} 7... Bb4 {[%clk 0:11:38.6]} 8. Bd2 {[%clk
0:11:06.6]} 8... Qa5 {[%clk 0:11:26.3]} 9. O-O {[%clk 0:11:05.6]} 9... Bxc3
{[%clk 0:11:25.8]} 10. Bxc3 {[%clk 0:11:06.6]} 10... Qxc3 {[%clk 0:11:26.8]} 11.
Ng5 {[%clk 0:10:52.3]} 11... h6 {[%clk 0:11:20.4]} 12. Nf3 {[%clk 0:10:51.7]}
12... O-O {[%clk 0:11:13]} 13. Rc1 {[%clk 0:10:52.4]} 13... a6 {[%clk
0:10:43.6]} 14. Qd2 {[%clk 0:10:47.3]} 14... Qxd2 {[%clk 0:10:42.8]} 15. Nxd2
{[%clk 0:10:49.2]} 15... b5 {[%clk 0:10:35.3]} 16. c4 {[%clk 0:10:47.6]} 16...
dxc4 {[%clk 0:10:28.1]} 17. bxc4 {[%clk 0:10:48.9]} 17... bxc4 {[%clk
0:10:23.7]} 18. Bxc4 {[%clk 0:10:48.5]} 18... Nb4 {[%clk 0:10:12]} 19. a3 {[%clk
0:10:41.8]} 19... Nbd5 {[%clk 0:10:04.2]} 20. e4 {[%clk 0:10:20.7]} 20... Nb6
{[%clk 0:09:42.7]} 21. f3 {[%clk 0:10:13.6]} 21... Nxc4 {[%clk 0:09:44]} 22.
Nxc4 {[%clk 0:10:14.1]} 22... a5 {[%clk 0:09:40.1]} 23. Rfd1 {[%clk 0:10:13.6]}
23... Ba6 {[%clk 0:09:34.6]} 24. Nxa5 {[%clk 0:10:12]} 24... Be2 {[%clk
0:09:13.5]} 25. Rd2 {[%clk 0:10:07.7]} 25... Rxa5 {[%clk 0:09:12.7]} 26. Rd6
{[%clk 0:10:02.9]} 26... Rxa3 {[%clk 0:09:06.5]} 27. Rdc6 {[%clk 0:10:03.3]}
27... Bb5 {[%clk 0:08:49.3]} 28. R6c5 {[%clk 0:10:01]} 28... Ba6 {[%clk
0:08:34.1]} 29. Rc6 {[%clk 0:09:59.2]} 29... Ra8 {[%clk 0:08:22.3]} 30. R6c4
{[%clk 0:09:35.8]} 30... Bxc4 {[%clk 0:08:21.8]} 31. Rxc4 {[%clk 0:09:35.9]}
31... Ra1+ {[%clk 0:08:18.8]} 32. Kf2 {[%clk 0:09:31.6]} 32... Nh5 {[%clk
0:08:10.2]} 33. h3 {[%clk 0:09:28.6]} 33... Nf4 {[%clk 0:08:08.4]} 34. g3 {[%clk
0:09:26.7]} 34... Nxh3+ {[%clk 0:08:05.9]} 35. Ke3 {[%clk 0:09:24.1]} 35...
R1a3+ {[%clk 0:08:01.8]} 36. Kd2 {[%clk 0:09:17.5]} 36... Rxf3 {[%clk
0:07:56.3]} 37. Rc3 {[%clk 0:09:10.3]} 37... Rxc3 {[%clk 0:07:57.5]} 38. Kxc3
{[%clk 0:09:12.3]} 38... Ra3+ {[%clk 0:07:58.3]} 39. Kb2 {[%clk 0:09:12.3]}
39... Rxg3 {[%clk 0:07:59.3]} 40. Kc2 {[%clk 0:09:10.7]} 40... Ng5 {[%clk
0:07:58.6]} 41. Kd2 {[%clk 0:09:10.6]} 41... Nxe4+ {[%clk 0:07:57.9]} 42. Ke2
{[%clk 0:09:12.3]} 42... h5 {[%clk 0:07:55.6]} 43. Kf1 {[%clk 0:09:10.2]} 43...
h4 {[%clk 0:07:57.1]} 44. Ke2 {[%clk 0:09:07.6]} 44... h3 {[%clk 0:07:58.8]} 45.
Kf1 {[%clk 0:09:08.5]} 45... h2 {[%clk 0:08:00.4]} 46. Ke1 {[%clk 0:04:42.3]}
46... g6 {[%clk 0:08:03.3]} 47. Ke2 {[%clk 0:04:26.8]} 47... h1=Q {[%clk
0:08:01.2]} 1/2-1/2

[Event "Rapid della Domenica"]
[Site "Chess.com"]
[Date "2020.05.03"]
[Round "5"]
[White "riccardocanossa"]
[Black "Simo2005"]
[Result "0-1"]
[WhiteElo "1501"]
[BlackElo "1781"]
[TimeControl "720+3"]
[EndTime "8:05:52 PDT"]
[Termination "Simo2005 ha vinto per scaccomatto"]

1. d4 {[%clk 0:12:02.9]} 1... Nf6 {[%clk 0:11:53.1]} 2. c4 {[%clk 0:12:04.2]}
2... c5 {[%clk 0:11:49.2]} 3. d5 {[%clk 0:12:01.1]} 3... b5 {[%clk 0:11:31.1]}
4. cxb5 {[%clk 0:11:54.5]} 4... a6 {[%clk 0:11:29.5]} 5. bxa6 {[%clk 0:11:44.4]}
5... Bxa6 {[%clk 0:11:28.5]} 6. Nc3 {[%clk 0:11:41.8]} 6... g6 {[%clk
0:11:20.7]} 7. Nf3 {[%clk 0:11:33.9]} 7... d6 {[%clk 0:11:12.6]} 8. e3 {[%clk
0:11:03.9]} 8... Bxf1 {[%clk 0:10:58.7]} 9. Kxf1 {[%clk 0:11:03.7]} 9... Bg7
{[%clk 0:10:55.4]} 10. Ke2 {[%clk 0:10:47.1]} 10... O-O {[%clk 0:10:48.7]} 11.
Re1 {[%clk 0:10:43.2]} 11... Nbd7 {[%clk 0:10:39.2]} 12. Kf1 {[%clk 0:10:38]}
12... Qb6 {[%clk 0:10:27.9]} 13. Qc2 {[%clk 0:10:29.7]} 13... Rfb8 {[%clk
0:10:14.1]} 14. b3 {[%clk 0:10:21.9]} 14... Ne8 {[%clk 0:08:26.1]} 15. Bb2
{[%clk 0:09:31.9]} 15... c4 {[%clk 0:08:06.6]} 16. Na4 {[%clk 0:08:58.6]} 16...
Qb5 {[%clk 0:06:02.7]} 17. Bxg7 {[%clk 0:08:47.6]} 17... cxb3+ {[%clk
0:05:50.7]} 18. Qe2 {[%clk 0:08:36.6]} 18... Qxe2+ {[%clk 0:04:40.4]} 19. Kxe2
{[%clk 0:08:27.2]} 19... Kxg7 {[%clk 0:04:01.5]} 20. Nc3 {[%clk 0:08:10]} 20...
bxa2 {[%clk 0:02:42.5]} 21. Red1 {[%clk 0:05:51.5]} 21... Ra3 {[%clk 0:01:33.8]}
22. Rd3 {[%clk 0:03:57.5]} 22... Nc5 {[%clk 0:01:09.6]} 23. Rxa2 {[%clk
0:03:05.6]} 23... Rxa2+ {[%clk 0:00:41.2]} 24. Nxa2 {[%clk 0:03:03.3]} 24...
Nxd3 {[%clk 0:00:34.9]} 25. Kxd3 {[%clk 0:03:05.4]} 25... Rb2 {[%clk 0:00:28.2]}
26. Nc3 {[%clk 0:03:00.1]} 26... Rxf2 {[%clk 0:00:29]} 27. g3 {[%clk 0:03:00.3]}
27... Rxf3 {[%clk 0:00:29.1]} 28. Kd4 {[%clk 0:02:55.5]} 28... Nf6 {[%clk
0:00:21.9]} 29. Nb5 {[%clk 0:02:50.2]} 29... Rf2 {[%clk 0:00:14.4]} 30. h4
{[%clk 0:02:49.9]} 30... Rg2 {[%clk 0:00:16]} 31. g4 {[%clk 0:02:51]} 31...
Rxg4+ {[%clk 0:00:17.1]} 32. e4 {[%clk 0:02:46.8]} 32... Rxe4+ {[%clk
0:00:17.7]} 33. Kc3 {[%clk 0:02:46.3]} 33... Rxh4 {[%clk 0:00:19.4]} 34. Nd4
{[%clk 0:02:45.5]} 34... Nxd5+ {[%clk 0:00:20.1]} 35. Kc4 {[%clk 0:02:44.6]}
35... e5 {[%clk 0:00:19]} 36. Kxd5 {[%clk 0:02:39.8]} 36... exd4 {[%clk
0:00:19.3]} 37. Kxd6 {[%clk 0:02:41.6]} 37... d3 {[%clk 0:00:20.8]} 38. Ke7
{[%clk 0:02:42.9]} 38... d2 {[%clk 0:00:22.1]} 39. Ke8 {[%clk 0:02:43.4]} 39...
d1=Q {[%clk 0:00:21.9]} 40. Ke7 {[%clk 0:02:45.3]} 40... Re4# {[%clk 0:00:18.6]}
0-1

[Event "Rapid della Domenica"]
[Site "Chess.com"]
[Date "2020.05.03"]
[Round "5"]
[White "sergiodone"]
[Black "laremaro"]
[Result "1/2-1/2"]
[WhiteElo "1492"]
[BlackElo "1571"]
[TimeControl "720+3"]
[EndTime "8:06:53 PDT"]
[Termination "Partita patta per ripetizione di mosse"]

1. e4 {[%clk 0:11:38.9]} 1... d5 {[%clk 0:11:59.9]} 2. exd5 {[%clk 0:11:34.5]}
2... Qxd5 {[%clk 0:12:01.5]} 3. c4 {[%clk 0:11:35.5]} 3... Qd8 {[%clk
0:12:01.8]} 4. d4 {[%clk 0:11:37]} 4... Nf6 {[%clk 0:11:52.1]} 5. Nc3 {[%clk
0:11:37.6]} 5... Nc6 {[%clk 0:11:53.3]} 6. d5 {[%clk 0:11:24.8]} 6... Nb8 {[%clk
0:11:47.5]} 7. h3 {[%clk 0:11:24.3]} 7... c6 {[%clk 0:11:42.4]} 8. Nf3 {[%clk
0:11:19.5]} 8... e6 {[%clk 0:11:32.6]} 9. Qb3 {[%clk 0:11:06.7]} 9... cxd5
{[%clk 0:11:31.3]} 10. cxd5 {[%clk 0:11:07.5]} 10... exd5 {[%clk 0:11:29.5]} 11.
Bb5+ {[%clk 0:11:03]} 11... Nc6 {[%clk 0:11:29.8]} 12. O-O {[%clk 0:11:02.7]}
12... Be7 {[%clk 0:11:30.5]} 13. Re1 {[%clk 0:11:03.6]} 13... O-O {[%clk
0:11:30.7]} 14. Bg5 {[%clk 0:10:54.9]} 14... Be6 {[%clk 0:10:59.3]} 15. Rad1
{[%clk 0:10:36.1]} 15... a6 {[%clk 0:10:42.2]} 16. Bxc6 {[%clk 0:10:35.4]} 16...
bxc6 {[%clk 0:10:44]} 17. Qc2 {[%clk 0:10:25.7]} 17... Qc7 {[%clk 0:10:28.9]}
18. Ne2 {[%clk 0:10:19.5]} 18... c5 {[%clk 0:10:25.8]} 19. b3 {[%clk 0:10:10.1]}
19... Rac8 {[%clk 0:09:50.8]} 20. Qb2 {[%clk 0:09:53.9]} 20... d4 {[%clk
0:09:37.8]} 21. Nf4 {[%clk 0:09:49.2]} 21... Bd5 {[%clk 0:09:23]} 22. Rxe7
{[%clk 0:09:00.4]} 22... Qxe7 {[%clk 0:09:14.2]} 23. Nxd5 {[%clk 0:09:01.5]}
23... Qe4 {[%clk 0:09:02.2]} 24. Nxf6+ {[%clk 0:08:58]} 24... gxf6 {[%clk
0:09:03.2]} 25. Bxf6 {[%clk 0:08:59.5]} 25... Qf5 {[%clk 0:08:36]} 26. Bh4
{[%clk 0:08:57.2]} 26... Rfe8 {[%clk 0:08:27.6]} 27. Bg3 {[%clk 0:08:57.4]}
27... Re6 {[%clk 0:08:18.1]} 28. Qd2 {[%clk 0:07:40.4]} 28... Rce8 {[%clk
0:08:07.4]} 29. Kh2 {[%clk 0:07:25.6]} 29... Re2 {[%clk 0:08:04.9]} 30. Qa5
{[%clk 0:07:25.7]} 30... Qc2 {[%clk 0:07:57.8]} 31. Rf1 {[%clk 0:07:08.4]} 31...
Qxa2 {[%clk 0:07:57]} 32. Qxc5 {[%clk 0:07:02.4]} 32... d3 {[%clk 0:07:33.7]}
33. Qg5+ {[%clk 0:07:00.7]} 33... Kf8 {[%clk 0:07:35.7]} 34. Bd6+ {[%clk
0:06:54.3]} 34... R8e7 {[%clk 0:07:17.5]} 35. Bxe7+ {[%clk 0:06:49.5]} 35...
Rxe7 {[%clk 0:07:17.8]} 36. Qd5 {[%clk 0:05:49.7]} 36... Qc2 {[%clk 0:07:01.4]}
37. Qd8+ {[%clk 0:05:48.3]} 37... Re8 {[%clk 0:07:00.9]} 38. Qd6+ {[%clk
0:05:47.6]} 38... Kg8 {[%clk 0:06:57.9]} 39. Qg3+ {[%clk 0:05:11]} 39... Kf8
{[%clk 0:06:57.5]} 40. Qd6+ {[%clk 0:04:54.1]} 40... Kg8 {[%clk 0:06:58.5]} 41.
Qd7 {[%clk 0:04:40.5]} 41... Re6 {[%clk 0:06:34.5]} 42. Ng5 {[%clk 0:04:21.3]}
42... Rf6 {[%clk 0:05:59.6]} 43. Ne4 {[%clk 0:03:55.2]} 43... Re6 {[%clk
0:05:54.1]} 44. Qd8+ {[%clk 0:03:49.4]} 44... Kg7 {[%clk 0:05:50.6]} 45. Qg5+
{[%clk 0:03:48.1]} 45... Rg6 {[%clk 0:05:43.4]} 46. Qe5+ {[%clk 0:03:48]} 46...
Kh6 {[%clk 0:05:22.9]} 47. Qf4+ {[%clk 0:03:38.2]} 47... Kg7 {[%clk 0:05:20.4]}
48. Ng5 {[%clk 0:03:24.3]} 48... Qe2 {[%clk 0:05:04.4]} 49. Qxf7+ {[%clk
0:03:23.2]} 49... Kh6 {[%clk 0:05:04.4]} 50. Qxh7+ {[%clk 0:01:43.1]} 50... Kxg5
{[%clk 0:05:03.6]} 51. h4+ {[%clk 0:01:37.4]} 51... Kf6 {[%clk 0:04:55.9]} 52.
Qh8+ {[%clk 0:01:27.8]} 52... Kf7 {[%clk 0:04:47.1]} 53. Qh7+ {[%clk 0:01:06.6]}
53... Rg7 {[%clk 0:04:45.8]} 54. Qf5+ {[%clk 0:01:07.8]} 54... Kg8 {[%clk
0:04:43.4]} 55. Rg1 {[%clk 0:01:00.3]} 55... d2 {[%clk 0:04:34.1]} 56. Qd5+
{[%clk 0:00:56.2]} 56... Kh7 {[%clk 0:04:13]} 57. h5 {[%clk 0:00:52]} 57... Qxf2
{[%clk 0:03:52.3]} 58. Qe4+ {[%clk 0:00:44.7]} 58... Kh8 {[%clk 0:03:46.8]} 59.
Qe8+ {[%clk 0:00:26.3]} 59... Kh7 {[%clk 0:03:46.3]} 60. Qe4+ {[%clk 0:00:27.3]}
60... Kh8 {[%clk 0:03:45.9]} 61. Qe8+ {[%clk 0:00:28.9]} 61... Kh7 {[%clk
0:03:46.5]} 62. Qe4+ {[%clk 0:00:30.1]} 1/2-1/2

[Event "Rapid della Domenica"]
[Site "Chess.com"]
[Date "2020.05.03"]
[Round "6"]
[White "ferrariand"]
[Black "pedrak"]
[Result "1-0"]
[WhiteElo "1535"]
[BlackElo "1668"]
[TimeControl "720+3"]
[EndTime "8:16:29 PDT"]
[Termination "ferrariand ha vinto per scaccomatto"]

1. e4 {[%clk 0:12:02.9]} 1... d6 {[%clk 0:12:00.8]} 2. d4 {[%clk 0:11:59.4]}
2... Nf6 {[%clk 0:12:02]} 3. Nc3 {[%clk 0:11:59.5]} 3... g6 {[%clk 0:12:01.4]}
4. Nf3 {[%clk 0:12:00]} 4... Bg7 {[%clk 0:12:02.8]} 5. Be2 {[%clk 0:11:56.7]}
5... O-O {[%clk 0:12:03.9]} 6. O-O {[%clk 0:11:57.1]} 6... Nc6 {[%clk
0:12:05.1]} 7. h3 {[%clk 0:11:55.6]} 7... e5 {[%clk 0:12:06.4]} 8. dxe5 {[%clk
0:11:55.1]} 8... Nxe5 {[%clk 0:12:00.5]} 9. Nxe5 {[%clk 0:11:52.8]} 9... dxe5
{[%clk 0:12:02.1]} 10. Bg5 {[%clk 0:11:45.8]} 10... c6 {[%clk 0:12:00]} 11. Qd3
{[%clk 0:11:33]} 11... Qc7 {[%clk 0:11:58.5]} 12. Rad1 {[%clk 0:11:26.8]} 12...
Be6 {[%clk 0:11:56]} 13. Qf3 {[%clk 0:11:24.4]} 13... Nd7 {[%clk 0:11:48.9]} 14.
a3 {[%clk 0:11:08.7]} 14... h6 {[%clk 0:11:48.6]} 15. Bc1 {[%clk 0:10:54.9]}
15... Rad8 {[%clk 0:11:31.9]} 16. Qg3 {[%clk 0:10:33.8]} 16... Kh7 {[%clk
0:11:25.5]} 17. Bg4 {[%clk 0:09:19.7]} 17... f5 {[%clk 0:11:22.5]} 18. exf5
{[%clk 0:08:58.8]} 18... gxf5 {[%clk 0:11:23.4]} 19. Bh5 {[%clk 0:08:59.4]}
19... Bf7 {[%clk 0:10:47.6]} 20. Bxf7 {[%clk 0:08:45.4]} 20... Rxf7 {[%clk
0:10:49]} 21. Rd4 {[%clk 0:07:14.9]} 21... Rg8 {[%clk 0:10:24.9]} 22. Rh4 {[%clk
0:06:59.8]} 22... Bf6 {[%clk 0:10:15.8]} 23. Rxh6# {[%clk 0:06:52.3]} 1-0

[Event "Rapid della Domenica"]
[Site "Chess.com"]
[Date "2020.05.03"]
[Round "6"]
[White "sirmale49"]
[Black "laremaro"]
[Result "0-1"]
[WhiteElo "1397"]
[BlackElo "1585"]
[TimeControl "720+3"]
[EndTime "8:19:02 PDT"]
[Termination "laremaro ha vinto per abbandono"]

1. e4 {[%clk 0:12:02.9]} 1... d5 {[%clk 0:12:00.8]} 2. e5 {[%clk 0:12:02.3]}
2... Bf5 {[%clk 0:12:01.1]} 3. Nf3 {[%clk 0:12:00.5]} 3... e6 {[%clk 0:12:03.4]}
4. d3 {[%clk 0:11:57.1]} 4... c5 {[%clk 0:12:04.6]} 5. Be2 {[%clk 0:11:50.9]}
5... Nc6 {[%clk 0:12:06.3]} 6. Bd2 {[%clk 0:11:51]} 6... Bg4 {[%clk 0:11:58.8]}
7. c3 {[%clk 0:11:45.8]} 7... Bxf3 {[%clk 0:11:57]} 8. Bxf3 {[%clk 0:11:43.8]}
8... Nxe5 {[%clk 0:11:59.3]} 9. Qe2 {[%clk 0:11:42.7]} 9... Nxf3+ {[%clk
0:11:56.5]} 10. gxf3 {[%clk 0:11:40.4]} 10... Nf6 {[%clk 0:11:58.1]} 11. Bg5
{[%clk 0:11:35.8]} 11... Be7 {[%clk 0:11:58.7]} 12. Qe5 {[%clk 0:11:35.8]} 12...
Qb6 {[%clk 0:11:48.7]} 13. b3 {[%clk 0:11:21.2]} 13... O-O-O {[%clk 0:11:33]}
14. Bf4 {[%clk 0:11:17.8]} 14... Bd6 {[%clk 0:11:31]} 15. Qe3 {[%clk 0:11:11.8]}
15... Bxf4 {[%clk 0:11:31.7]} 16. Qxf4 {[%clk 0:11:12.6]} 16... e5 {[%clk
0:11:23.3]} 17. Qf5+ {[%clk 0:11:10.1]} 17... Kb8 {[%clk 0:11:25.2]} 18. O-O
{[%clk 0:11:07.7]} 18... Rde8 {[%clk 0:11:13.4]} 19. Re1 {[%clk 0:11:04.5]}
19... g6 {[%clk 0:11:06.5]} 20. Qg5 {[%clk 0:10:24.3]} 20... h6 {[%clk
0:10:54.6]} 21. Qd2 {[%clk 0:10:19.2]} 21... Nh5 {[%clk 0:10:54.4]} 22. c4
{[%clk 0:09:23.5]} 22... Qe6 {[%clk 0:10:45.6]} 23. Nc3 {[%clk 0:09:10]} 23...
Nf4 {[%clk 0:10:40.5]} 24. Nb5 {[%clk 0:08:41.2]} 24... Qh3 {[%clk 0:10:38.8]}
25. Qxf4 {[%clk 0:08:19.7]} 25... exf4 {[%clk 0:10:36.8]} 26. Rxe8+ {[%clk
0:08:20.1]} 26... Rxe8 {[%clk 0:10:37.7]} 27. Nd6 {[%clk 0:08:21.3]} 27... Re2
{[%clk 0:10:09.9]} 28. Rf1 {[%clk 0:07:56.3]} 28... dxc4 {[%clk 0:10:07.2]} 29.
bxc4 {[%clk 0:07:53.2]} 29... Qxf3 {[%clk 0:10:06.8]} 30. Nxf7 {[%clk
0:07:49.1]} 30... Qg4+ {[%clk 0:09:57.8]} 31. Kh1 {[%clk 0:07:44.2]} 31... f3
{[%clk 0:09:37]} 32. Rg1 {[%clk 0:07:17]} 32... Qf4 {[%clk 0:09:35.4]} 33. Nh8
{[%clk 0:06:51.2]} 33... Rxf2 {[%clk 0:09:33.5]} 0-1

[Event "Rapid della Domenica"]
[Site "Chess.com"]
[Date "2020.05.03"]
[Round "6"]
[White "riccardocanossa"]
[Black "MarcoCiva"]
[Result "0-1"]
[WhiteElo "1447"]
[BlackElo "1445"]
[TimeControl "720+3"]
[EndTime "8:20:29 PDT"]
[Termination "MarcoCiva ha vinto per abbandono"]

1. e4 {[%clk 0:12:02.9]} 1... e5 {[%clk 0:11:59.3]} 2. Nf3 {[%clk 0:12:04.4]}
2... Nc6 {[%clk 0:11:57.7]} 3. Bc4 {[%clk 0:12:03.6]} 3... Bc5 {[%clk
0:11:58.7]} 4. c3 {[%clk 0:11:58.6]} 4... Nf6 {[%clk 0:11:59.9]} 5. d4 {[%clk
0:11:55]} 5... exd4 {[%clk 0:11:56]} 6. cxd4 {[%clk 0:11:55.2]} 6... Bb4+ {[%clk
0:11:53.4]} 7. Bd2 {[%clk 0:11:53.1]} 7... Bxd2+ {[%clk 0:11:52.8]} 8. Nbxd2
{[%clk 0:11:53]} 8... O-O {[%clk 0:11:53.4]} 9. e5 {[%clk 0:11:50.4]} 9... Re8
{[%clk 0:11:30.3]} 10. O-O {[%clk 0:11:44.2]} 10... Ng4 {[%clk 0:11:23.9]} 11.
h3 {[%clk 0:11:36.6]} 11... Nh6 {[%clk 0:11:25.2]} 12. Re1 {[%clk 0:11:26.9]}
12... d5 {[%clk 0:11:25.9]} 13. Bb5 {[%clk 0:11:15.8]} 13... Be6 {[%clk
0:11:15.6]} 14. Qc2 {[%clk 0:11:12.6]} 14... Qd7 {[%clk 0:10:57.8]} 15. Rac1
{[%clk 0:10:42.2]} 15... Bxh3 {[%clk 0:10:54.3]} 16. gxh3 {[%clk 0:10:27.6]}
16... Qxh3 {[%clk 0:10:55.9]} 17. Bxc6 {[%clk 0:10:17.4]} 17... bxc6 {[%clk
0:10:56.5]} 18. Ng5 {[%clk 0:09:57.6]} 18... Qg4+ {[%clk 0:10:54]} 19. Kf1
{[%clk 0:09:52.6]} 19... Qxg5 {[%clk 0:10:55.3]} 20. Nf3 {[%clk 0:09:46.6]}
20... Qh5 {[%clk 0:10:40.3]} 21. Re3 {[%clk 0:09:31.8]} 21... Re6 {[%clk
0:10:34.8]} 22. Qc3 {[%clk 0:08:19.6]} 22... Ng4 {[%clk 0:10:21.1]} 23. Rd3
{[%clk 0:08:13.5]} 23... Qh1+ {[%clk 0:10:05.3]} 24. Ke2 {[%clk 0:08:05.4]}
24... Qg2 {[%clk 0:10:02.1]} 25. Qe1 {[%clk 0:08:01.6]} 25... f6 {[%clk
0:09:45.7]} 26. Qg1 {[%clk 0:07:22.5]} 26... Qxg1 {[%clk 0:08:46]} 27. Rxg1
{[%clk 0:06:52.3]} 27... h5 {[%clk 0:08:42.5]} 0-1

[Event "Rapid della Domenica"]
[Site "Chess.com"]
[Date "2020.05.03"]
[Round "6"]
[White "BAKR1980"]
[Black "Simo2005"]
[Result "1/2-1/2"]
[WhiteElo "1663"]
[BlackElo "1760"]
[TimeControl "720+3"]
[EndTime "8:22:07 PDT"]
[Termination "Patta d'accordo"]

1. e4 {[%clk 0:12:02.9]} 1... d6 {[%clk 0:11:58.4]} 2. d4 {[%clk 0:12:01.1]}
2... Nf6 {[%clk 0:11:56.6]} 3. Nc3 {[%clk 0:12:00.3]} 3... g6 {[%clk 0:11:52.4]}
4. Bg5 {[%clk 0:11:54.2]} 4... Bg7 {[%clk 0:11:45.7]} 5. Qd2 {[%clk 0:11:55.2]}
5... c6 {[%clk 0:11:36.3]} 6. O-O-O {[%clk 0:11:25.4]} 6... Nbd7 {[%clk
0:11:24.4]} 7. f4 {[%clk 0:11:25.8]} 7... b5 {[%clk 0:11:11.2]} 8. e5 {[%clk
0:11:18.4]} 8... b4 {[%clk 0:10:35.9]} 9. Na4 {[%clk 0:10:42.4]} 9... Ne4 {[%clk
0:10:26.2]} 10. Qe3 {[%clk 0:10:37.1]} 10... Nxg5 {[%clk 0:10:12.3]} 11. fxg5
{[%clk 0:10:38.3]} 11... O-O {[%clk 0:10:01.5]} 12. h4 {[%clk 0:10:35.6]} 12...
Qa5 {[%clk 0:09:45.4]} 13. e6 {[%clk 0:09:48.3]} 13... Qxa4 {[%clk 0:09:17.4]}
14. exd7 {[%clk 0:09:48.8]} 14... Bxd7 {[%clk 0:09:16.3]} 15. Qxe7 {[%clk
0:09:41.5]} 15... Bf5 {[%clk 0:08:59.1]} 16. Bd3 {[%clk 0:09:02.4]} 16... Bxd3
{[%clk 0:07:59.8]} 17. Rxd3 {[%clk 0:09:02.3]} 17... Rfe8 {[%clk 0:07:54]} 18.
Qxd6 {[%clk 0:08:53.3]} 18... Qxa2 {[%clk 0:07:17.2]} 19. Qg3 {[%clk 0:07:26.9]}
19... Qa1+ {[%clk 0:06:45.1]} 20. Kd2 {[%clk 0:07:20]} 20... Qxb2 {[%clk
0:06:38.1]} 21. Nf3 {[%clk 0:07:15.1]} 1/2-1/2